Cogmind - Beta 9.4 @@@ ROGUE MODE // 2020.03.07 @ 08:13:11 // Winter2019/RPGLIKE Player: Frank Result: Destroyed by B-75 Beast with Magnetic Acceleration Cannon Performance ------------- Evolutions (4) 2000 Regions Visited (11) 2200 Robots Destroyed (187) 935 Value Destroyed (6979) 6979 Prototype IDs (28) 560 Alien Tech Used (0) 0 Bonus (2640) 2640 TOTAL SCORE: 15314 Bonus ------- High Alert Combat Kills 1244 Follower Combat Kills 184 Entered Garrisons 400 Used RIF Installer 1000 Aligned with FarCom 300 Friendly Fire -488 Cogmind --------- Core Integrity 0/1900 Matter 416/500 Energy 270/270 System Corruption 0% Temperature Cool (12) Movement Walking (120) Location -6/Extension Parts ------- > --- POWER (2) -------- Light Antimatter Reactor > --- PROPULSION (3) --- Flexi-carbon Leg Flexi-carbon Leg Flexi-carbon Leg > --- UTILITY (6) ------ Advanced Targeting Computer Improved Medium Armor Plating Force Field Hacking Suite Relay Coupler [ARC] (18) Relay Coupler [Swarmer] (64) > --- WEAPON (4) ------- Flak Gun Flak Gun Heavy Machine Gun Remote Datajack > --- INVENTORY (4) ---- Fission Core Energy Well (500) Relay Coupler [ARC] (18) Peak State ------------ > --- POWER ------------ Light Antimatter Reactor Light Antimatter Reactor > --- PROPULSION ------- Flexi-carbon Leg Flexi-carbon Leg Flexi-carbon Leg > --- UTILITY ---------- Advanced Targeting Computer Improved Medium Armor Plating Force Field Hacking Suite Relay Coupler [ARC] Relay Coupler [Swarmer] > --- WEAPON ----------- Flak Gun Flak Gun Heavy Machine Gun Remote Datajack > --- INVENTORY -------- Fission Core Energy Well Relay Coupler [ARC] [Rating: 70] Favorites ----------- Power Improved Deuterium Engine Engine Improved Deuterium Engine Power Core Nuclear Core Reactor Light Antimatter Reactor Propulsion Light Treads Treads Light Treads Leg Flexi-carbon Leg Utility Advanced Targeting Computer Device Cloak of Protection Storage Medium Matter Pod Processor Advanced Targeting Computer Hackware Hacking Suite Protection Improved Medium Armor Plating Weapon Flak Gun Energy Gun Gatling Laser Ballistic Gun Flak Gun Special Weapon Remote Datajack Special Melee Weapon Datajack Build | -11 -10 -10 -10 -9 -8 -7 -7 -6 -6 -6 -6 ------- Run | Scr Mat Min Exi Min Mat Fac Gar Fac Gar Fac Ext Slots Evolved 11 | 3 . . . . 4 2 . . 1 1 . Power 1 | . . . . . 1 . . . . . . Propulsion 2 | 1 . . . . . . . . 1 . . Utility 5 | 1 . . . . 2 1 . . . 1 . Weapon 3 | 1 . . . . 1 1 . . . . . Parts Attached 93 | 6 11 3 1 4 11 15 3 4 15 16 4 Power 16 | 1 1 1 . . 4 5 . . . 3 1 Engine 7 | 1 . 1 . . 1 4 . . . . . Core 7 | . 1 . . . 3 1 . . . 2 . Reactor 2 | . . . . . . . . . . 1 1 Propulsion 23 | 2 1 . . 4 . 4 . . 5 7 . Treads 7 | . . . . 3 . 4 . . . . . Leg 16 | 2 1 . . 1 . . . . 5 7 . Wheel . | . . . . . . . . . . . . Hover . | . . . . . . . . . . . . Flight . | . . . . . . . . . . . . Utility 25 | 1 6 . 1 . 4 3 1 1 4 2 2 Device 13 | 1 3 . 1 . 3 1 . . 2 1 1 Storage 2 | . 1 . . . . . 1 . . . . Processor 2 | . . . . . . 2 . . . . . Hackware 6 | . 1 . . . 1 . . 1 2 1 . Protection 2 | . 1 . . . . . . . . . 1 Artifact . | . . . . . . . . . . . . Weapon 29 | 2 3 2 . . 3 3 2 3 6 4 1 Energy Gun 4 | 1 . . . . . . . 1 1 1 . Energy Cannon . | . . . . . . . . . . . . Ballistic Gun 20 | 1 3 1 . . 3 3 1 . 4 3 1 Ballistic Cannon . | . . . . . . . . . . . . Launcher . | . . . . . . . . . . . . Special Weapon 4 | . . . . . . . 1 2 1 . . Impact Weapon . | . . . . . . . . . . . . Slashing Weapon . | . . . . . . . . . . . . Piercing Weapon . | . . . . . . . . . . . . Special Melee Weapon 1 | . . 1 . . . . . . . . . Unidentified Prototypes 1 | . . . . . 1 . . . . . . Parts Lost 1 | . . . . . . . . . . . 1 Power 1 | . . . . . . . . . . . 1 Propulsion . | . . . . . . . . . . . . Utility . | . . . . . . . . . . . . Weapon . | . . . . . . . . . . . . Highest Loss Streak 1 | . . . . . . . . . . . 1 Average Slot Usage (%) 98 | . 99 100 100 99 93 100 100 100 99 99 99 Engine 9 | . 4 4 14 14 5 12 15 15 14 4 . Core 4 | . 9 9 . . 11 5 . . . 6 3 Reactor 1 | . . . . . . . . . . 1 8 Treads 10 | . . . . 19 19 17 15 15 3 . . Leg 10 | . 28 28 28 7 . . . . 16 20 20 Device 8 | . 15 14 14 14 13 4 7 7 4 3 4 Processor 8 | . . . . . . 15 15 15 14 13 12 Hackware 14 | . 1 14 14 14 16 17 7 12 16 20 20 Energy Gun 1 | . . . . . . . . 1 7 1 2 Ballistic Gun 24 | . 27 24 28 28 26 27 29 22 18 18 16 Special Weapon 1 | . . . . . . . . 6 2 6 6 Naked Turns . | . . . . . . . . . . . . Heaviest Build 54 | 9 14 12 17 17 29 46 48 48 49 45 54 Greatest Support 70 | 20 20 20 20 40 40 48 53 58 60 70 70 Greatest Overweight (x) 1 | . . . . . . . . . 1 . . Average Overweight (x) . | . . . . . . . . . . . . Largest Inventory Capacity 4 | 1 1 2 2 2 2 2 3 3 3 3 4 Average Capacity 2 | 1 1 1 2 2 2 2 2 3 3 3 3 Most Carried 4 | 1 1 2 2 2 2 2 3 3 3 3 4 Average Carried 2 | . . 1 1 1 1 1 2 3 2 2 3 Final Capacity 4 | 1 1 2 2 2 2 2 3 3 3 3 4 Final Carried 3 | 1 1 1 1 2 2 2 3 3 2 3 3 Class Distribution -------------------- 45% | Hacker-Gunner 26% | Hacker-Mutant 13% | Hacker-Tank 6% | Mutant 4% | Scavenger-Gunner 3% | Scavenger-Mutant Dominant Class ---------------- Mutant | -10/Materials Hacker-Mutant | -10/Mines Hacker-Mutant | -10/Exiles Hacker-Mutant | -9/Mines Hacker-Tank | -8/Materials Hacker-Gunner | -7/Factory Hacker-Gunner | -7/Garrison Hacker-Mutant | -6/Factory Hacker-Gunner | -6/Garrison Hacker-Gunner | -6/Factory Hacker-Gunner | -6/Extension Resources | -11 -10 -10 -10 -9 -8 -7 -7 -6 -6 -6 -6 ----------- Run | Scr Mat Min Exi Min Mat Fac Gar Fac Gar Fac Ext Matter Collected 5239 | 266 432 88 . 167 1155 960 744 . 391 390 646 Remotely 48 | 48 . . . . . . . . . . . Salvage Created 6777 | 79 400 118 . 201 1689 1463 1034 24 453 429 887 Parts 405 | 5 37 4 . 13 91 92 40 9 34 53 27 Haulers Intercepted 2 | . . . . . 2 . . . . . . Recyclers Shooed 5 | 1 . . . . 2 1 . . . 1 . Parts Field Recycled . | . . . . . . . . . . . . Retrieved Matter . | . . . . . . . . . . . . Parts Self-Destructed . | . . . . . . . . . . . . Prevented . | . . . . . . . . . . . . Kills | -11 -10 -10 -10 -9 -8 -7 -7 -6 -6 -6 -6 ------- Run | Scr Mat Min Exi Min Mat Fac Gar Fac Gar Fac Ext Combat Hostiles Destroyed 124 | . 9 . . 2 36 24 23 2 12 7 9 Melee 1 | . . . . . . 1 . . . . . Guns 123 | . 9 . . 2 36 23 23 2 12 7 9 Classes Destroyed 15 | 2 4 . . . 5 3 1 . . . . Worker 19 | . 1 . . 2 3 6 . . . 7 . Builder 12 | . 2 . . . 5 1 . 1 . 3 . Tunneler 6 | 1 . 1 . 2 . 1 . . . 1 . Hauler 2 | . . . . . 2 . . . . . . Recycler 16 | 1 1 2 . 1 3 6 . . . 1 1 Operator 3 | . 1 . . . 1 . . . . 1 . Watcher 2 | . . . . . . 1 . . . . 1 Swarmer 17 | . . . . . 10 6 . . . 1 . Grunt 75 | . 9 . . 2 23 8 16 1 5 6 5 Brawler 6 | . . . . . 2 1 3 . . . . Duelist 5 | . . . . . . 1 1 1 2 . . Sentry 12 | . . . . . 1 3 1 . 2 1 4 Specialist 2 | . . . . . . . 2 . . . . Hunter 5 | . . . . . 1 1 . . 2 1 . Programmer 5 | . . . . . . 4 . . 1 . . Best Kill Streak 11 | 2 6 2 . 2 11 11 8 3 5 5 2 Combat Bots Only 11 | . 5 . . 2 11 6 8 2 5 3 2 Max Kills in Single Turn 2 | 1 1 1 . 2 2 2 2 1 1 2 2 Gunslinging 1 | . . . . 1 1 . 1 . . . 1 Exploded . | . . . . . . . . . . . . Melee 1 | . . . . . . 1 . . . . . Uniques/NPCs Destroyed . | . . . . . . . . . . . . Combat | -11 -10 -10 -10 -9 -8 -7 -7 -6 -6 -6 -6 -------- Run | Scr Mat Min Exi Min Mat Fac Gar Fac Gar Fac Ext Damage Taken 7873 | . 587 . . 26 1438 1128 1017 118 1418 217 1924 Core 6057 | . 417 . . 20 1129 894 803 99 1095 162 1438 Absorbed by Shields 1029 | . . . . . 372 18 . . . 228 411 Redirected to Core 5259 | . 303 . . 20 1006 795 726 69 1052 162 1126 Core Remaining (%) 60 | 100 . . . 67 38 . 38 . . . . Volleys Fired 377 | 6 29 6 . 15 104 62 45 9 33 31 37 Largest 4 | 2 2 2 . 2 3 4 4 3 4 3 3 Hottest 193 | 70 46 46 . 46 73 101 101 76 193 133 133 Shots Fired 1046 | 12 58 12 . 30 279 184 163 23 103 83 99 Gun 1027 | 12 58 12 . 30 279 184 159 21 96 82 94 Cannon . | . . . . . . . . . . . . Launcher . | . . . . . . . . . . . . Special 19 | . . . . . . . 4 2 7 1 5 Kinetic 960 | 6 58 12 . 30 279 184 159 21 57 75 79 Thermal 48 | 6 . . . . . . . . 20 7 15 Explosive . | . . . . . . . . . . . . Electromagnetic 19 | . . . . . . . . . 19 . . Robot Hit Streak 68 | 5 14 10 . 5 16 68 50 29 40 44 55 Robot Miss Streak 5 | 2 3 2 . 3 5 4 3 1 2 3 2 Penetration Max 1 | . . . . . . 1 . . . . . Secondary Targets 32 | . 3 . . 1 9 4 10 1 2 . 2 Max Gunslinging Chain 1 | . 1 . . 1 1 1 1 1 1 . 1 Shots Hit Robots 829 | 9 47 15 . 24 202 149 131 18 90 71 73 Core Hits 573 | 4 30 5 . 15 103 95 88 13 70 80 70 Critical Hits 6 | . 1 . . . 2 2 . . . 1 . Critical Kills 1 | . . . . . 1 . . . . . . Critical Parts Destroyed 5 | . 1 . . . 1 2 . . . 1 . Melee Attacks 4 | . . 4 . . . . . . . . . Impact . | . . . . . . . . . . . . Slashing . | . . . . . . . . . . . . Piercing . | . . . . . . . . . . . . Sneak Attacks 4 | . . 4 . . . . . . . . . Combat Hostiles . | . . . . . . . . . . . . Follow-up Attacks . | . . . . . . . . . . . . Damage Inflicted 15804 | 76 620 153 . 283 3231 3092 2562 302 1833 1659 1993 Guns 15518 | 76 620 153 . 274 3119 3078 2562 301 1833 1509 1993 Cannons . | . . . . . . . . . . . . Explosions 262 | . . . . . 112 . . . . 150 . Melee . | . . . . . . . . . . . . Ramming 24 | . . . . 9 . 14 . 1 . . . Kinetic 14329 | 40 620 153 . 274 3119 3078 2562 301 1028 1378 1776 Thermal 899 | 36 . . . . . . . . 515 131 217 Explosive 262 | . . . . . 112 . . . . 150 . Electromagnetic 290 | . . . . . . . . . 290 . . Impact . | . . . . . . . . . . . . Slashing . | . . . . . . . . . . . . Piercing . | . . . . . . . . . . . . Highest Corruption 5 | . . . . . . 5 5 . . . . Average Corruption 4 | . . . . . . 3 5 . . . . Corruption Purged . | . . . . . . . . . . . . Effects 44 | . . . . . . 17 27 . . . . Message Errors 9 | . . . . . . 3 6 . . . . Matter Fused 5 | . . . . . . 2 3 . . . . Heat Flow Errors 4 | . . . . . . 2 2 . . . . Energy Discharges 5 | . . . . . . 2 3 . . . . Data Loss (minor) 2 | . . . . . . 1 1 . . . . Data Loss (major) 1 | . . . . . . 1 . . . . . Targeting Errors 14 | . . . . . . 5 9 . . . . Weapon Failures 4 | . . . . . . 1 3 . . . . Overload Shots . | . . . . . . . . . . . . Overflow Damage 15 | . . . . . 15 . . . . . . Projectiles . | . . . . . . . . . . . . Explosions 15 | . . . . . 15 . . . . . . Melee . | . . . . . . . . . . . . Knockbacks . | . . . . . . . . . . . . Impact . | . . . . . . . . . . . . Kinetic . | . . . . . . . . . . . . Secondary . | . . . . . . . . . . . . Self-Inflicted Damage 67 | . . . . . . . . . . 67 . Shots 1 | . . . . . . . . . . 1 . Rammed 4 | . . . . . . 3 . 1 . . . Targets Rammed 6 | . . . . 1 . 4 . 1 . . . Kicked 1 | . . . . 1 . . . . . . . Crushed 1 | . . . . . . 1 . . . . . Highest Temperature 640 | . . . . . 42 175 245 33 640 99 237 Average Temperature 73 | . . . . . 15 30 72 14 208 25 76 Received Heat Transfer 2365 | . 254 . . 15 627 190 513 36 267 39 424 Effects 19 | . . . . . . . . . 19 . . Shutdowns 4 | . . . . . . . . . 4 . . Energy Bleed 3 | . . . . . . . . . 3 . . Interference 8 | . . . . . . . . . 8 . . Matter Decay 1 | . . . . . . . . . 1 . . Damage (major) 3 | . . . . . . . . . 3 . . Siege Activations . | . . . . . . . . . . . . Robots Corrupted . | . . . . . . . . . . . . Combat Hostiles . | . . . . . . . . . . . . Parts Fried . | . . . . . . . . . . . . Impact Corruptions . | . . . . . . . . . . . . Robots Melted . | . . . . . . . . . . . . Combat Hostiles . | . . . . . . . . . . . . Parts Melted 3 | . . . . . . . . . 2 . 1 Heat Transferred 2086 | 111 . . . . . . . . 1175 300 500 Parts Sabotaged . | . . . . . . . . . . . . Parts Stolen . | . . . . . . . . . . . . Parts Stripped . | . . . . . . . . . . . . Power Chain Reactions . | . . . . . . . . . . . . Missiles Intercepted . | . . . . . . . . . . . . Alert | -11 -10 -10 -10 -9 -8 -7 -7 -6 -6 -6 -6 ------- Run | Scr Mat Min Exi Min Mat Fac Gar Fac Gar Fac Ext Peak Influence 1213 | 10 251 40 . 96 758 734 1213 673 932 647 466 Average Influence 430 | 3 137 31 . 47 272 417 864 660 721 564 323 Maximum Alert Level 4 | . 1 . . . 3 3 4 2 3 2 2 Low Security (%) 24 | 100 60 100 . 100 45 . . . . . . Level 1 24 | . 39 . . . 25 59 . . . . 86 Level 2 33 | . . . . . 22 35 27 100 39 100 13 Level 3 15 | . . . . . 6 4 53 . 60 . . Level 4 2 | . . . . . . . 18 . . . . Level 5 . | . . . . . . . . . . . . High Security . | . . . . . . . . . . . . Max Security . | . . . . . . . . . . . . Squads Dispatched 26 | . 2 . . . 12 8 . 1 . 3 . Investigation 1 | . 1 . . . . . . . . . . Extermination 1 | . . . . . . 1 . . . . . Reinforcement 13 | . 1 . . . 7 2 . . . 3 . Assault 1 | . . . . . . . . 1 . . . Garrison 10 | . . . . . 5 5 . . . . . Intercept . | . . . . . . . . . . . . Construction Impeded 5 | . . . . . 2 2 . . . 1 . Haulers Reinforced . | . . . . . . . . . . . . Stealth | -11 -10 -10 -10 -9 -8 -7 -7 -6 -6 -6 -6 --------- Run | Scr Mat Min Exi Min Mat Fac Gar Fac Gar Fac Ext Distress Signals 7 | . . . . . 3 . . . . 1 3 Communications Jammed . | . . . . . . . . . . . . Distress Signals . | . . . . . . . . . . . . Times Spotted 175 | . 14 . . 2 53 29 23 4 21 10 19 Peak Tracking Total 8 | . 5 . . 2 7 5 8 3 5 4 6 Tactical Retreats 5 | . 1 . . . 1 1 . . . . 2 Traps | -11 -10 -10 -10 -9 -8 -7 -7 -6 -6 -6 -6 ------- Run | Scr Mat Min Exi Min Mat Fac Gar Fac Gar Fac Ext Traps Triggered 8 | . 1 . . . . 2 . 1 4 . . Indirectly . | . . . . . . . . . . . . Trap Hack Attempts . | . . . . . . . . . . . . Triggered . | . . . . . . . . . . . . Disarmed . | . . . . . . . . . . . . Reprogrammed . | . . . . . . . . . . . . Reused . | . . . . . . . . . . . . Traps Extracted . | . . . . . . . . . . . . Installed . | . . . . . . . . . . . . Triggered . | . . . . . . . . . . . . Machines | -11 -10 -10 -10 -9 -8 -7 -7 -6 -6 -6 -6 ---------- Run | Scr Mat Min Exi Min Mat Fac Gar Fac Gar Fac Ext Machines Disabled 11 | . . . . . 4 . 2 . 3 1 1 Max in Single Turn 1 | . . . . . 1 . 1 . 1 1 1 Garrison Relay 5 | . . . . . . . 2 . 3 . . Machines Sabotaged . | . . . . . . . . . . . . Garrisons Compromised . | . . . . . . . . . . . . Overloaded Fab Kills . | . . . . . . . . . . . . Fab Network Shutdowns . | . . . . . . . . . . . . Hacking | -11 -10 -10 -10 -9 -8 -7 -7 -6 -6 -6 -6 --------- Run | Scr Mat Min Exi Min Mat Fac Gar Fac Gar Fac Ext Machines Accessed 20 | . 1 . 1 . 5 3 . 3 . 2 5 Terminals 13 | . . . . . 3 2 . 2 . 1 5 Fabricators . | . . . . . . . . . . . . Repair Stations 1 | . . . . . . . . . . 1 . Recycling Units 1 | . 1 . . . . . . . . . . Scanalyzers 2 | . . . . . 2 . . . . . . Garrison Access 2 | . . . . . . 1 . 1 . . . Total Hacks 49 | . 4 . 1 . 14 8 . 7 . 3 12 Successful 30 | . 2 . 1 . 12 4 . 3 . 3 5 Failed 19 | . 2 . . . 2 4 . 4 . . 7 Catastrophic 1 | . . . . . . 1 . . . . . Database Lockouts . | . . . . . . . . . . . . Manual 1 | . . . 1 . . . . . . . . Terminals 32 | . . . . . 9 5 . 5 . 1 12 Fabricators . | . . . . . . . . . . . . Repair Stations 2 | . . . . . . . . . . 2 . Recycling Units 4 | . 4 . . . . . . . . . . Scanalyzers 5 | . . . . . 5 . . . . . . Garrison Access 5 | . . . . . . 3 . 2 . . . Terminal Hacks 18 | . . . 1 . 7 3 . 1 . 1 5 Record 5 | . . . . . 1 3 . 1 . . . Prototype ID Bank 2 | . . . . . 1 . . . . . 1 Open Door 4 | . . . . . . . . . . 1 3 Branch Access Points 1 | . . . . . . . . . . . 1 Emergency Access Points 2 | . . . . . 2 . . . . . . Unreport Threat 1 | . . . . . 1 . . . . . . Dispatch Records 1 | . . . . . 1 . . . . . . Zone Layout 1 | . . . . . 1 . . . . . . EX-Prototype ID Bank 1 | . . . 1 . . . . . . . . Fabricator Hacks . | . . . . . . . . . . . . Repair Station Hacks 2 | . . . . . . . . . . 2 . Scan Component 1 | . . . . . . . . . . 1 . Repair 1 | . . . . . . . . . . 1 . Recycling Unit Hacks 2 | . 2 . . . . . . . . . . Report Inventory 1 | . 1 . . . . . . . . . . Retrieve Components 1 | . 1 . . . . . . . . . . Scanalyzer 5 | . . . . . 5 . . . . . . Insert Component 3 | . . . . . 3 . . . . . . Analyze 2 | . . . . . 2 . . . . . . Garrison Access Hacks 3 | . . . . . . 1 . 2 . . . Unlock Access 2 | . . . . . . 1 . 1 . . . Coupler Status 1 | . . . . . . . . 1 . . . Unauthorized Hacks . | . . . . . . . . . . . . Terminals . | . . . . . . . . . . . . Fabricators . | . . . . . . . . . . . . Repair Stations . | . . . . . . . . . . . . Recycling Units . | . . . . . . . . . . . . Scanalyzers . | . . . . . . . . . . . . Garrison Access . | . . . . . . . . . . . . Data Cores Recovered . | . . . . . . . . . . . . Used . | . . . . . . . . . . . . Hacking Detections 15 | . 1 . . . 5 3 . 3 . 1 2 Full Trace Events 1 | . 1 . . . . . . . . . . Feedback Events . | . . . . . . . . . . . . Feedback Blocked . | . . . . . . . . . . . . Robot Schematics Acquired . | . . . . . . . . . . . . Robots Built . | . . . . . . . . . . . . Matter . | . . . . . . . . . . . . Time . | . . . . . . . . . . . . Total Robot Build Rating . | . . . . . . . . . . . . Part Schematics Acquired 2 | . . . . . 2 . . . . . . Parts Built . | . . . . . . . . . . . . Matter . | . . . . . . . . . . . . Time . | . . . . . . . . . . . . Total Part Build Rating . | . . . . . . . . . . . . Parts Repaired 1 | . . . . . . . . . . 1 . Time 14 | . . . . . . . . . . 14 . Parts Recycled . | . . . . . . . . . . . . Recycled Matter . | . . . . . . . . . . . . Retrieved Matter . | . . . . . . . . . . . . Retrieved Components 10 | . 10 . . . . . . . . . . Parts Scanalyzed 2 | . . . . . 2 . . . . . . Part Schematics Acquired 2 | . . . . . 2 . . . . . . Parts Damaged . | . . . . . . . . . . . . Bothacking | -11 -10 -10 -10 -9 -8 -7 -7 -6 -6 -6 -6 ------------ Run | Scr Mat Min Exi Min Mat Fac Gar Fac Gar Fac Ext Used RIF Installer 2 | . . . . . . . 1 . 1 . . Program Shield 1 | . . . . . . . . . 1 . . Robots Hacked 13 | . . 2 . . . . . 2 7 1 1 Non-combat 3 | . . 2 . . . . . 1 . . . Combat 10 | . . . . . . . . 1 7 1 1 Robot Hacks Applied 13 | . . 2 . . . . . 2 7 1 1 parse_system 2 | . . . . . . . . . . 1 1 no_distress 3 | . . 2 . . . . . 1 . . . overwrite_iff 1 | . . . . . . . . 1 . . . formatsys_high 7 | . . . . . . . . . 7 . . Relay Couplers Released 9 | . . . . . . . 3 . 6 . . Machine Destruction 9 | . . . . . . . 3 . 6 . . Attached 3 | . . . . . . . . 1 2 . . Robots Rewired 4 | . . . . . . . . . . . 4 Allies Hacked . | . . . . . . . . . . . . Hacks Repelled . | . . . . . . . . . . . . Allies | -11 -10 -10 -10 -9 -8 -7 -7 -6 -6 -6 -6 -------- Run | Scr Mat Min Exi Min Mat Fac Gar Fac Gar Fac Ext Total Allies 20 | . . . . 3 . . . 1 7 . 9 Largest Group 6 | . . . . 3 1 . . 1 6 3 6 Highest-Rated Group 169 | . . . . 40 16 . . 12 140 53 169 Highest-Rated Ally 31 | . . . . 16 16 . . 12 29 29 31 Total Orders . | . . . . . . . . . . . . Ally Attacks 84 | . . . . 5 5 . . 3 18 11 42 Total Damage 1286 | . . . . 58 75 . . 38 187 161 767 Kills 5 | . . . . 1 1 . . . 1 . 2 Allies Corrupted . | . . . . . . . . . . . . Allies Melted 1 | . . . . . . . . . . . 1 Intel | -11 -10 -10 -10 -9 -8 -7 -7 -6 -6 -6 -6 ------- Run | Scr Mat Min Exi Min Mat Fac Gar Fac Gar Fac Ext Robot Analysis Total . | . . . . . . . . . . . . Derelict Logs Recovered 1 | . . 1 . . . . . . . . . Drone Launches . | . . . . . . . . . . . . Drone Recoveries . | . . . . . . . . . . . . Exploration | -11 -10 -10 -10 -9 -8 -7 -7 -6 -6 -6 -6 ------------- Run | Scr Mat Min Exi Min Mat Fac Gar Fac Gar Fac Ext Turns Passed 7599 | 96 412 260 304 624 1206 1167 788 391 902 719 730 Spaces Moved 3981 | 61 228 186 251 383 480 476 362 208 509 416 421 Core 6 | 6 . . . . . . . . . . . Treads 1860 | . . . . 258 480 476 362 208 76 . . Legs 2115 | 55 228 186 251 125 . . . . 433 416 421 Wheels . | . . . . . . . . . . . . Hover . | . . . . . . . . . . . . Flight . | . . . . . . . . . . . . Fastest Speed 50 | 50 120 120 120 120 160 160 165 165 120 120 120 Average Speed 139 | 113 120 120 120 146 160 160 165 165 126 120 120 Slowest Speed 165 | 120 120 120 120 160 160 165 165 165 165 123 120 Overloaded Moves . | . . . . . . . . . . . . Propulsion Burnouts . | . . . . . . . . . . . . Robots Hopped . | . . . . . . . . . . . . Cave-ins Triggered . | . . . . . . . . . . . . Exploration Rate (%) 37 | 5 35 37 60 58 43 13 63 7 70 14 40 Regions Visited 11 Branch Regions 4 Pre-discovered Areas . | . . . . . . . . . . . . Known Exits Taken 2 | . . . . . . 1 . 1 . . . Unknown Exits Taken 7 | 1 1 1 1 1 1 . . . . 1 . Scrap Searched 2 | . . 1 . 1 . . . . . . . Spaces Dug . | . . . . . . . . . . . . Terrain Destroyed 42 | . . . . . 28 . . . . 14 . Melee . | . . . . . . . . . . . . Projectile . | . . . . . . . . . . . . AOE 42 | . . . . . 28 . . . . 14 . Actions | -11 -10 -10 -10 -9 -8 -7 -7 -6 -6 -6 -6 --------- Run | Scr Mat Min Exi Min Mat Fac Gar Fac Gar Fac Ext Total 5324 | 74 309 206 255 415 723 764 473 242 709 579 575 Wait 542 | . 23 6 . 1 89 163 19 4 71 73 93 Move 3972 | 60 227 185 250 382 479 476 361 208 508 415 421 Hop . | . . . . . . . . . . . . Pick Up 47 | 2 2 1 2 4 7 6 3 . 7 10 3 Fast Attach 31 | 5 8 . . 1 5 5 1 1 4 1 . Attach 9 | 1 . . 1 1 2 1 . . 2 1 . Detach 1 | . . . . . . . . . 1 . . Swap 53 | . 3 3 . 2 4 9 2 3 9 14 4 Drop 79 | . 11 1 2 4 11 16 3 2 15 12 2 Fire 377 | 6 29 6 . 15 104 62 45 9 33 31 37 Melee 4 | . . 4 . . . . . . . . . Ram . | . . . . . . . . . . . . Kick 1 | . . . . 1 . . . . . . . Crush 5 | . . . . . . 4 . 1 . . . Escape Stasis 15 | . . . . . . . . . 15 . . Rewire 1 | . . . . . . . . . 1 . . Trap . | . . . . . . . . . . . . Miscellaneous 187 | . 6 . . 4 22 22 39 14 43 22 15 Route ------- -11/Scrapyard -10/Materials -10/Mines (discovered 2 exits: [*Mat] / *Exi) -10/Exiles -9/Mines (discovered 2 exits: *Mat x2) -8/Materials -7/Factory -7/Garrison (discovered 2 exits: *Fac x2) -6/Factory -6/Garrison (discovered 3 exits: *Fac x3) -6/Factory -6/Extension (discovered 1 exit: Cet) History --------- Turn | Location | Event 1 | -11/Scrapyard | Upgraded with Propulsion slot (x1) 1 | -11/Scrapyard | Upgraded with Utility slot (x1) 1 | -11/Scrapyard | Upgraded with Weapon slot (x1) 6 | -11/Scrapyard | Discovered new exit (range 16) 97 | -11/Scrapyard | Entered Materials 317 | -10/Materials | Build established: Mutant 410 | -10/Materials | Discovered new exit (range 13) 509 | -10/Materials | Entered Mines 511 | -10/Mines | Reached level 2 600 | -10/Mines | Discovered new exit (range 6) 629 | -10/Mines | Learned Materials trap positions 765 | -10/Mines | Deemed a non-threat by the Exiles lab entrance 765 | -10/Mines | Discovered new exit (range 5) 769 | -10/Mines | Entered Exiles 800 | -10/Exiles | Met 8R-AWN 823 | -10/Exiles | Met EX-HEX 857 | -10/Exiles | Met EX-BIN 878 | -10/Exiles | Build established: Hacker-Mutant 879 | -10/Exiles | Aligned with FarCom system 880 | -10/Exiles | Given EX-Vault access code 909 | -10/Exiles | Opened EX-Vault 919 | -10/Exiles | Found Cloak of Protection 944 | -10/Exiles | Warned to stay clear of 0b10 Research branches 980 | -10/Exiles | Met EX-DEC 1021 | -10/Exiles | Discovered new exit (range 14) 1073 | -10/Exiles | Left Exiles lab with Cloak of Protection 1073 | -10/Exiles | Entered Mines 1105 | -9/Mines | Assisted by bots powering up and referring to "LRC-V3" 1160 | -9/Mines | Discovered new exit (range 10) 1230 | -9/Mines | Joined a pair of Derelicts in attacking an 0b10 outpost 1401 | -9/Mines | Discovered new exit (range 5) 1562 | -9/Mines | Assisted by bots powering up and referring to "LRC-V3" 1697 | -9/Mines | Entered Materials 1697 | -8/Materials | Accompanied by 1 ally 1698 | -8/Materials | Loaded intel: 11 trap records 1699 | -8/Materials | Reached level 3 1713 | -8/Materials | Upgraded with Power slot (x1) 1770 | -8/Materials | Reached level 4 1871 | -8/Materials | Upgraded with Utility slot (x1) 1871 | -8/Materials | Upgraded with Weapon slot (x1) 1928 | -8/Materials | Core integrity fell below 50% 2296 | -8/Materials | Core integrity fell below 20% 2310 | -8/Materials | Reached level 5 2313 | -8/Materials | Upgraded with Utility slot (x1) 2330 | -8/Materials | Garrison activated, responded to threat 2394 | -8/Materials | Build established: Hacker-Tank 2407 | -8/Materials | Destroyed 11 combat bots 2483 | -8/Materials | Reached level 6 2784 | -8/Materials | Garrison activated, responded to threat 2820 | -8/Materials | Reached level 7 2851 | -8/Materials | Destroyed 7 combat bots 2876 | -8/Materials | Discovered new exit (range 15) 2903 | -8/Materials | Entered Factory 2904 | -7/Factory | Core integrity fell below 50% 2905 | -7/Factory | Reached level 8 3400 | -7/Factory | Build established: Hacker-Gunner 3599 | -7/Factory | Garrison activated, responded to threat 3640 | -7/Factory | Reached level 9 3643 | -7/Factory | Upgraded with Utility slot (x1) 3856 | -7/Factory | Reached level 10 3872 | -7/Factory | Upgraded with Weapon slot (x1) 3926 | -7/Factory | Garrison activated, responded to threat 3940 | -7/Factory | Core integrity fell below 20% 4070 | -7/Factory | Identified exit to Garrison 4070 | -7/Factory | Entered Garrison 4098 | -7/Garrison | Triggered checkpoint 4214 | -7/Garrison | Triggered checkpoint 4227 | -7/Garrison | Reached level 11 4258 | -7/Garrison | Triggered checkpoint 4334 | -7/Garrison | Destroyed 8 combat bots 4450 | -7/Garrison | Discovered new exit (range 8) 4500 | -7/Garrison | Triggered checkpoint 4507 | -7/Garrison | Reached level 12 4528 | -7/Garrison | Garrison Relay disabled 4592 | -7/Garrison | Triggered checkpoint 4731 | -7/Garrison | Discovered new exit (range 14) 4768 | -7/Garrison | Triggered checkpoint 4771 | -7/Garrison | Garrison Relay disabled 4801 | -7/Garrison | Reached level 13 4848 | -7/Garrison | Installed Relay Interface Framework 4858 | -7/Garrison | Entered Factory 4859 | -6/Factory | Core integrity fell below 50% 4860 | -6/Factory | Reached level 14 5208 | -6/Factory | First assault squad dispatched 5249 | -6/Factory | Identified exit to Garrison 5249 | -6/Factory | Entered Garrison 5363 | -6/Garrison | Reached level 15 5370 | -6/Garrison | Core integrity fell below 20% 5472 | -6/Garrison | Triggered checkpoint 5478 | -6/Garrison | Triggered checkpoint 5478 | -6/Garrison | Upgraded with Propulsion slot (x1) 5548 | -6/Garrison | Discovered new exit (range 9) 5590 | -6/Garrison | Triggered checkpoint 5645 | -6/Garrison | Garrison Relay disabled 5780 | -6/Garrison | Discovered new exit (range 11) 5802 | -6/Garrison | Expanded RIF knowledge: Program Shield 5803 | -6/Garrison | Build established: Scavenger-Gunner 5830 | -6/Garrison | Triggered checkpoint 5874 | -6/Garrison | Garrison Relay disabled 5874 | -6/Garrison | Reached level 16 5960 | -6/Garrison | Triggered checkpoint 5978 | -6/Garrison | Triggered checkpoint 6050 | -6/Garrison | Triggered checkpoint 6078 | -6/Garrison | Garrison Relay disabled 6130 | -6/Garrison | Discovered new exit (range 8) 6151 | -6/Garrison | Entered Factory 6151 | -6/Factory | Accompanied by 3 allies 6281 | -6/Factory | Repaired Flak Gun 6412 | -6/Factory | Upgraded with Utility slot (x1) 6505 | -6/Factory | Reached level 17 6580 | -6/Factory | Build established: Hacker-Gunner 6865 | -6/Factory | Discovered new exit (range 6) 6870 | -6/Factory | Entered Extension 6915 | -6/Extension | Disrupted transfer network 7133 | -6/Extension | Identified exit to Cetus 7148 | -6/Extension | Rescued a captive Derelict 7150 | -6/Extension | Rescued a captive Derelict 7166 | -6/Extension | Reached level 18 7350 | -6/Extension | Rescued a captive Derelict 7372 | -6/Extension | Rescued a captive Derelict 7373 | -6/Extension | Rescued a captive Derelict 7420 | -6/Extension | Spotted B-75 Beast 7548 | -6/Extension | Spotted B-75 Beast 7600 | -6/Extension | Destroyed by B-75 Beast with Magnetic Acceleration Cannon Last Messages --------------- 07461_ Y-54 Guardian destroyed. 07523_ Acquired 56 matter. 07550_ Jacked B-75 Beast... >>parse_system Reading system data... 07551_ Acquired 5 matter. 07552_ Discarded Adv. Targeting Computer. 07553_ Acquired 10 matter. 07554_ Acquired 14 matter. 07554_ R-10 Processor collects Ripper. 07561_ Critical hit. 07561_ Lgt. Antimatter Reactor destroyed. 07567_ Knocked back. 07575_ B-75 Beast destroyed. 07584_ Knocked back. 07587_ U-05 Engineer lays Concrete. 07594_ Knocked back. 07597_ U-05 Engineer builds a Wall. 07597_ Knocked back. [Achievement: 10k Club] Map ----- +----------------------------------------------------+ | ??????#T #??????###?????# #????????????????????? | | ??????## ##??????????????# #????????????????????? | | ???????# #???????????????# #????????????????????? | | ???????####???????????????# #????????????????????? | | ??????????????????????????# #????????????????????? | | ??????????????????????????# #????????????????????? | | ??????????????????????????# #????????????????????? | | ??????????????????????????# #????????????????????? | | ??????????????????????????# #????????????????????? | | ??????????????????????????# #????????????????????? | | ??????????????????????????# #????????????????????? | | ??????????????????????????# #????????????????????? | | ??????????????????????????# #????????????????????? | | ?????????????????????????##%#????????????????????? | | ???????????????????????###" ##?##?##???#?????????? | | ???????????????????????#;##%;## ## ### ##????????? | | ???????????????????????#; " "" ""#???????? | | ???????????????????????#; " " #???????? | | ???????????????????????## % #???????? | | ?????????????????##???### u #???????? | | ???###############;###### ####????? | | ?? u R ???? | | ?? % ???? | | ?? ??? | | ?? ??? | | ?? @=%* BB ??? | | ????##################### = BB ##??????? | | ????????????????????????# #???????? | | ????????????????????????# #???????? | | ????????????????????????# #???????? | | ????????????????????????# #???????? | | ????????????????????????######T#"""#######???????? | | ??????????????????????????????##?????????????????? | | ?????????????????????????????????????????????????? | | | | | | | | | | | | | | | | | | | | | | | | | | | | | | | | | +----------------------------------------------------+ Best States ------------- Heat Dissipation 63 Energy Generation 47 Energy Capacity 520 Matter Stores 538 Matter Capacity 550 Sight Range 20 Robot Scan Range 6 Terrain Scan Density 10 Cloak Strength 5 Heat Shielding 75 Armor Coverage 225 Resistance: KI 20 Resistance: TH 5 Resistance: EX 5 Weapon Shielding 33 Evasion (%) 40 Targeting Accuracy 16 Recoil Reduction 2 Offensive Hacking 30 Defensive Hacking 15 Item Schematics ----------------- Datajack | -8/Materials | Scanalyzed Imp. Grenade Launcher | -8/Materials | Scanalyzed Robot Schematics ------------------ None Fabricated ------------ Nothing Alien Tech Used ----------------- None Achievements -------------- 10k Club Assimilation Complete Gun Specialist Significant Disruption Challenges ------------ None RPGLIKE | -11 -10 -10 -10 -9 -8 -7 -7 -6 -6 -6 -6 --------- Run | Scr Mat Min Exi Min Mat Fac Gar Fac Gar Fac Ext Levels Raised 17 | . . 1 . . 5 3 3 1 2 1 1 XP Earned 28958 | 3000 1100 500 350 921 6430 4880 4086 1772 3294 1087 1538 XP Spent 28370 | 2920 . 1450 . . 7475 4525 4025 2000 800 3750 1425 Upgrades 79 | 13 . 4 . . 24 8 15 3 1 8 3 Power Slot 1 | . . . . . 1 . . . . . . Propulsion Slot 2 | 1 . . . . . . . . 1 . . Utility Slot 5 | 1 . . . . 2 1 . . . 1 . Weapon Slot 3 | 1 . . . . 1 1 . . . . . Core Integrity 26 | 2 . . . . 15 . 9 . . . . Heat Dissipation 4 | 3 . . . . . . 1 . . . . Energy Generation 2 | 1 . . . . 1 . . . . . . Energy Storage 2 | . . . . . . . . . . . 2 Matter Storage 4 | . . . . . . 2 1 . . 1 . Mass Support 2 | . . . . . . . 1 1 . . . Inventory Capacity 4 | 1 . 1 . . . . 1 . . . 1 Sight Range 4 | . . . . . . . . . . 4 . Sensor Range 3 | 1 . . . . . . . . . 2 . Ranged Accuracy 4 | 1 . . . . 3 . . . . . . Hack Attack % 4 | . . 2 . . . . . 2 . . . Hack Defense % 1 | . . . . . 1 . . . . . . KI Resistance % 4 | 1 . 1 . . . 2 . . . . . TH Resistance % 1 | . . . . . . 1 . . . . . EX Resistance % 1 | . . . . . . 1 . . . . . KI Damage % 2 | . . . . . . . 2 . . . . Protomatter Created 1894 | . 160 . . 31 259 265 328 101 307 391 52 Integrity Restored 4151 | . 116 . . 93 465 498 915 303 933 501 327 Core 4151 | . 116 . . 93 465 498 915 303 933 501 327 Protomatter Decayed 807 | . 121 . . 3 104 99 23 . 58 148 251 Game ------ Seed Peregrine Manual? 1 Play Time 01:24:39 Cumulative 21.5 hours Start 2020.03.07 @ 06:51:56 End 2020.03.07 @ 08:13:11 Sessions 1 Manual Loads 0 Difficulty Rogue Special Mode Winter2019/RPGLIKE Game No. 44 Rogue 43 Adventurer 1 Explorer 0 Win Type - Total 0 Types 0/0/0/0/0/0/0 Lore% 16 Gallery% 29 Achievement% 19 Wizard Run 0 Options --------- ASCII 0 Keyboard 0 Movement Mouse Keybinds 0 Fullscreen 1 Font 36/X11Bold Map View 76x50 Tactical HUD 1 Map Filters NONE Filters NONE Steam 1 RUN: 02a8e785-12c7-4f3c-9309-61b6bcdf81bd